Cogmind - Beta 16 @@@ ROGUE MODE // 2025.11.12 @ 11:17:55 Player: Demo Result: Destroyed by B-90 Cyclops with Nova Cannon Performance ------------- Evolutions (8) 4000 Regions Visited (13) 2600 Robots Destroyed (25) 125 Value Destroyed (1216) 1216 Prototype IDs (35) 700 Alien Tech Used (2) 400 Bonus (1781) 1781 TOTAL SCORE: 10822 Bonus ------- Pacifist 491 Follower Combat Kills 242 Registered with UFD 300 Met Optimus in HQ 500 Met Zhirov 300 Friendly Fire -52 Cogmind --------- Core Integrity 0/1450 Matter 102/300 Energy 100/100 System Corruption 13% Temperature Cool (9) Movement Core (50) Location -2/Research Parts ------- > --- POWER (1) -------- (None) > --- PROPULSION (5) --- (None) > --- UTILITY (5) ------ Improved Targeting Computer Improved Launcher Guidance Computer Core Analyzer > --- WEAPON (12) ------ (None) > --- INVENTORY (5) ---- Improved System Restoration Module Linear Accelerator Gamma Bomb Array Peak State ------------ > --- POWER ------------ Micro Antimatter Reactor > --- PROPULSION ------- Cooled Gravmag System Cooled Gravmag System Improved Antigrav System Improved Antigrav System Improved Gyrokinetic Inverter > --- UTILITY ---------- Large Storage Unit Advanced Energy Well Backup Plating VII Advanced System Shield System Guard > --- WEAPON ----------- Gamma Rifle Backup Laser VII Backup Laser VII Linear Accelerator > --- INVENTORY -------- Fusion Reactor Advanced Medium Treads Myomer Leg Improved Thunder Leg Improved Antigrav System Improved Antigrav System Backup Propulsion VII Advanced Heat Sink Precision Matter Filter Improved Remote Force Field V3-11A's Pendant Transdimensional Reconstructor Grenade Launcher [Rating: 108] Favorites ----------- Power Subdweller Power Source Engine Subdweller Power Source Reactor Fusion Reactor Propulsion Subdweller Monowheel Treads Light Treads Leg Heavy Shield Leg Wheel Subdweller Monowheel Hover Unit Cooled Gravmag System Flight Unit Field Propulsion Drive Utility V3-11A's Pendant Device V3-11A's Pendant Storage Advanced Energy Well Processor System Guard Hackware Advanced System Shield Protection Light Armor Plating Weapon Powered Cannon Energy Gun Subdweller Laser Energy Cannon Powered Cannon Ballistic Gun Subdweller Machine Gun Ballistic Cannon Linear Accelerator Launcher Grenade Launcher Build | -11 -10 -10 -10 -7 -7 -5 -5 -5 -5 -4 -4 -3 -2 ------- Run | Yrd Mat Min Sub Rec Scr Fac Upp Upp Zhi Pro Fac Res Res Slots Evolved 16 | . . . . . . 10 . . . . 2 2 2 Power . | . . . . . . . . . . . . . . Propulsion 3 | . . . . . . 3 . . . . . . . Utility 3 | . . . . . . 3 . . . . . . . Weapon 10 | . . . . . . 4 . . . . 2 2 2 Parts Attached 69 | 2 . . 9 2 . 1 6 7 7 3 3 15 14 Power 5 | . . . . . . . . 2 1 . . 1 1 Engine 2 | . . . . . . . . 2 . . . . . Core . | . . . . . . . . . . . . . . Reactor 3 | . . . . . . . . . 1 . . 1 1 Propulsion 32 | 2 . . 3 1 . . 5 1 3 . 3 5 9 Treads 10 | 2 . . . . . . 2 . . . . . 6 Leg 3 | . . . . . . . . . . . . . 3 Wheel 7 | . . . 3 1 . . 2 1 . . . . . Hover 8 | . . . . . . . . . 3 . 3 2 . Flight 4 | . . . . . . . 1 . . . . 3 . Utility 20 | . . . 2 1 . 1 1 1 3 3 . 5 3 Device 5 | . . . 1 . . 1 . . 1 . . 1 1 Storage 2 | . . . . . . . . . 1 . . 1 . Processor 4 | . . . . . . . . . . 1 . 1 2 Hackware 1 | . . . . . . . . . 1 . . . . Protection 8 | . . . 1 1 . . 1 1 . 2 . 2 . Artifact . | . . . . . . . . . . . . . . Weapon 12 | . . . 4 . . . . 3 . . . 4 1 Energy Gun 4 | . . . . . . . . 1 . . . 3 . Energy Cannon 2 | . . . 1 . . . . 1 . . . . . Ballistic Gun 1 | . . . . . . . . 1 . . . . . Ballistic Cannon 1 | . . . . . . . . . . . . 1 . Launcher 4 | . . . 3 . . . . . . . . . 1 Special Weapon . | . . . . . . . . . . . . . . Impact Weapon . | . . . . . . . . . . . . . . Slashing Weapon . | . . . . . . . . . . . . . . Piercing Weapon . | . . . . . . . . . . . . . . Special Melee Weapon . | . . . . . . . . . . . . . . Unidentified Prototypes 10 | . . . 2 . . . . . 5 . . 1 2 Parts Lost 37 | . . . 2 . . . 2 7 . . 2 14 10 Power 3 | . . . . . . . . 1 . . . 1 1 Propulsion 19 | . . . 2 . . . 1 1 . . . 6 9 Utility 8 | . . . . . . . 1 3 . . . 4 . Weapon 7 | . . . . . . . . 2 . . 2 3 . Highest Loss Streak 9 | . . . 2 . . . 2 6 . . 2 9 6 To Critical Strikes 2 | . . . . . . . . 1 . . . . 1 Average Backups 3 | . . 2 3 4 3 3 3 2 2 4 4 7 3 Power . | . . . . . . . . . . . . . . Propulsion . | . . . . . . . . . . . . 2 . Utility 1 | . . . . 1 1 1 1 1 1 2 3 3 1 Weapon 1 | . . 2 2 3 2 2 2 1 1 . . . . Tool/Special . | . . . . . . . . . . . . . . Unused Backups 14 | . . . . . . . . . . . . 11 3 Power . | . . . . . . . . . . . . . . Propulsion 5 | . . . . . . . . . . . . 5 . Utility 8 | . . . . . . . . . . . . 6 2 Weapon 1 | . . . . . . . . . . . . . 1 Tool/Special . | . . . . . . . . . . . . . . Average Slot Usage (%) 44 | . 28 28 43 49 50 25 36 67 52 58 53 48 16 Treads 5 | . 28 28 1 . . . 5 10 3 . . . 7 Wheel 10 | . . . 19 13 12 5 5 14 13 . . . . Hover 1 | . . . . . . . . . 3 17 22 14 . Device 8 | . . . 12 12 12 9 11 6 5 2 . . . Protection 3 | . . . . 10 12 5 4 8 . 3 5 1 . Energy Gun 1 | . . . . . . . . 3 5 5 2 5 . Energy Cannon 5 | . . . 7 12 12 5 5 5 5 2 . . . Launcher 1 | . . . 2 . . . . 3 . . . . . Peak Build Rating 108 | 2 2 2 21 29 29 32 34 45 63 67 72 108 73 Average Rating 27 | 1 2 2 15 28 29 30 28 37 30 57 66 72 38 On Entrance 25 | . 2 2 2 21 29 29 32 34 23 57 58 68 5 Avg Prop Armor Cover (%) 22 | 39 41 41 19 13 . . 6 6 10 . 4 8 45 Naked Turns 6 | . . . 6 . . . . . . . . . . Heaviest Build 64 | . . . 10 17 17 18 18 59 38 42 32 64 27 Greatest Support 105 | 3 3 3 40 28 28 28 28 40 33 48 57 58 105 Greatest Overweight (x) 4 | . . . 3 3 . . 4 1 1 1 . 1 . Average Overweight (x) . | . . . . . . . . . . . . . . Largest Inventory Capacity 15 | 5 5 5 5 5 5 5 5 5 5 5 5 15 5 Average Capacity 5 | 5 5 5 5 5 5 5 5 5 5 5 5 11 5 Most Carried 15 | . 2 2 5 5 5 4 5 5 5 5 5 15 5 Average Carried 4 | . . 2 4 4 4 4 4 4 4 4 4 7 3 Final Capacity 5 | 5 5 5 5 5 5 5 5 5 5 5 5 5 5 Final Carried 5 | . 2 2 5 5 4 4 5 5 4 5 5 2 3 Class Distribution -------------------- 85% | Mutant 6% | Subdweller-Executioner 4% | Scavenger-Mutant Dominant Class ---------------- Mutant | -10/Materials Mutant | -10/Mines Mutant | -10/Subcaves Mutant | -7/Recycling Mutant | -7/Scraptown Mutant | -5/Factory Mutant | -5/Upper Caves Subdweller-Executioner | -5/Upper Caves Scavenger-Mutant | -5/Zhirov Mutant | -4/Proximity Caves Mutant | -4/Factory Mutant | -3/Research Mutant | -2/Research Resources | -11 -10 -10 -10 -7 -7 -5 -5 -5 -5 -4 -4 -3 -2 ----------- Run | Yrd Mat Min Sub Rec Scr Fac Upp Upp Zhi Pro Fac Res Res Matter Collected 1586 | 211 . 9 666 44 . . 65 146 114 70 . 179 82 Remotely . | . . . . . . . . . . . . . . Salvage Created 976 | . . . . . . . 19 250 265 13 38 323 68 Parts 56 | . . . . . . . 1 17 2 3 6 20 7 Haulers Intercepted . | . . . . . . . . . . . . . . Recyclers Shooed . | . . . . . . . . . . . . . . Parts Field Recycled . | . . . . . . . . . . . . . . Retrieved Matter . | . . . . . . . . . . . . . . Parts Self-Destructed 35 | . . . 6 . . . 5 17 2 5 . . . Prevented . | . . . . . . . . . . . . . . Parts Restored . | . . . . . . . . . . . . . . Kills | -11 -10 -10 -10 -7 -7 -5 -5 -5 -5 -4 -4 -3 -2 ------- Run | Yrd Mat Min Sub Rec Scr Fac Upp Upp Zhi Pro Fac Res Res Combat Hostiles Destroyed 25 | . . . . . . . . 9 . 3 5 6 2 Melee 1 | . . . . . . . . 1 . . . . . Guns 5 | . . . . . . . . 3 . . . 2 . Cannons 4 | . . . . . . . . . . . . 4 . AOE 14 | . . . . . . . . 4 . 3 5 . 2 Classes Destroyed 5 | . . . . . . . 1 3 . . . 1 . Swarmer 14 | . . . . . . . . 4 . 3 5 . 2 Sentry 1 | . . . . . . . . . . . . 1 . Hunter 4 | . . . . . . . . 4 . . . . . Programmer 6 | . . . . . . . . 1 . . . 5 . Decomposer 1 | . . . . . . . 1 . . . . . . Best Kill Streak 5 | . . . . . . . . 4 . 3 5 2 2 Combat Bots Only 5 | . . . . . . . . 4 . 3 5 2 2 Max Kills in Single Turn 2 | . . . . . . . 1 2 . 2 2 1 2 Gunslinging . | . . . . . . . . . . . . . . Exploded 2 | . . . . . . . . 2 . 2 2 . 2 Melee 1 | . . . . . . . . 1 . . . . . Uniques/NPCs Destroyed . | . . . . . . . . . . . . . . Combat | -11 -10 -10 -10 -7 -7 -5 -5 -5 -5 -4 -4 -3 -2 -------- Run | Yrd Mat Min Sub Rec Scr Fac Upp Upp Zhi Pro Fac Res Res Hostile Shots Fired 772 | . 24 . 31 . . . 15 76 . 22 31 203 370 Missed 289 | . 15 . 13 . . . 5 18 . 7 13 82 136 Hits 483 | . 9 . 18 . . . 10 58 . 15 18 121 234 Melee 1 | . . . . . . . . . . . . . 1 Projectile 482 | . 9 . 18 . . . 10 58 . 15 18 121 233 AOE 1 | . . . 1 . . . . . . . . . . Critical Strikes 27 | . . . 1 . . . . 7 . 2 . 6 11 Part Disruptions 1 | . . . . . . . . . . . . . 1 Damage Taken 10773 | . 71 . 567 . . . 238 1046 . 251 392 2635 5573 Core 2759 | . 31 . 148 . . . 24 80 . 98 67 846 1465 Absorbed by Shields . | . . . . . . . . . . . . . . Core Remaining (%) 66 | 100 . . . . 28 . . . . 79 94 30 . Volleys Fired 136 | . . . 56 . . . 6 24 17 5 6 21 1 Largest 3 | . . . 1 . . . 1 3 1 1 1 3 1 Hottest 171 | . . . 40 . . . 40 171 30 30 30 154 80 Shots Fired 169 | . . . 55 . . . 6 34 17 5 6 45 1 Gun 60 | . . . . . . . . 19 17 . . 24 . Cannon 43 | . . . 7 . . . 6 9 . . . 21 . Launcher 66 | . . . 48 . . . . 6 . 5 6 . 1 Special . | . . . . . . . . . . . . . . Kinetic 56 | . . . 5 . . . . 13 17 . . 21 . Thermal 50 | . . . 7 . . . 6 13 . . . 24 . Explosive 60 | . . . 43 . . . . 6 . 5 6 . . Electromagnetic 3 | . . . . . . . . 2 . . . . 1 Robot Hit Streak 13 | . . . . . . . 2 6 12 13 3 7 3 Robot Miss Streak 3 | . . . . . . . 1 3 1 1 3 2 1 Penetration Max . | . . . . . . . . . . . . . . Secondary Targets . | . . . . . . . . . . . . . . Shots Hit Robots 70 | . . . . . . . 4 18 16 3 3 25 1 Core Hits 70 | . . . 2 . . . . 17 7 7 11 13 13 Critical Kills 1 | . . . . . . . . 1 . . . . . Critical Parts Destroyed . | . . . . . . . . . . . . . . Critical Strikes 1 | . . . . . . . . 1 . . . . . Meltdown 1 | . . . . . . . . 1 . . . . . Melee Attacks . | . . . . . . . . . . . . . . Impact . | . . . . . . . . . . . . . . Slashing . | . . . . . . . . . . . . . . Piercing . | . . . . . . . . . . . . . . Sneak Attacks . | . . . . . . . . . . . . . . Combat Hostiles . | . . . . . . . . . . . . . . Follow-up Attacks . | . . . . . . . . . . . . . . Damage Inflicted 3902 | . . . 143 . . . 224 1012 353 350 529 996 295 Guns 919 | . . . . . . . . 211 353 . . 355 . Cannons 1180 | . . . . . . . 224 318 . . . 638 . Explosions 1781 | . . . 143 . . . . 480 . 350 529 . 279 Melee . | . . . . . . . . . . . . . . Ramming 22 | . . . . . . . . 3 . . . 3 16 Kinetic 1169 | . . . 57 . . . . 121 353 . . 638 . Thermal 987 | . . . . . . . 224 408 . . . 355 . Explosive 1445 | . . . 86 . . . . 480 . 350 529 . . Electromagnetic 279 | . . . . . . . . . . . . . 279 Impact . | . . . . . . . . . . . . . . Slashing . | . . . . . . . . . . . . . . Piercing . | . . . . . . . . . . . . . . Highest Corruption 15 | . . . . . . . . . . . . 15 13 Average Corruption 5 | . . . . . . . . . . . . 5 4 Corruption Purged . | . . . . . . . . . . . . . . Corruption Blocked . | . . . . . . . . . . . . . . Effects 12 | . . . . . . . . . . . . 6 6 Message Errors 3 | . . . . . . . . . . . . 2 1 Matter Fused 3 | . . . . . . . . . . . . 2 1 Energy Discharges 2 | . . . . . . . . . . . . . 2 Data Loss (minor) 1 | . . . . . . . . . . . . 1 . Alerts 1 | . . . . . . . . . . . . . 1 Misdirections 1 | . . . . . . . . . . . . . 1 Weapon Failures 1 | . . . . . . . . . . . . 1 . Overload Shots 5 | . . . . . . . . 5 . . . . . Overflow Damage 140 | . . . 24 . . . 41 58 . . 1 16 . Projectiles 112 | . . . . . . . 41 55 . . . 16 . Explosions 28 | . . . 24 . . . . 3 . . 1 . . Melee . | . . . . . . . . . . . . . . Knockbacks 6 | . . . . . . . . . . . . 6 . Impact . | . . . . . . . . . . . . . . Kinetic 5 | . . . . . . . . . . . . 5 . Secondary 1 | . . . . . . . . . . . . 1 . Self-Inflicted Damage 196 | . . . 58 . . . . 31 . 14 42 1 50 Shots 13 | . . . 4 . . . . 3 . 1 1 . 4 Rammed 3 | . . . . . . . . . . . . 1 2 Targets Rammed 17 | . . . . . . . . 1 . . . 1 15 Kicked 13 | . . . . . . . . . . . . . 13 Crushed 1 | . . . . . . . . 1 . . . . . Highest Temperature 188 | . . . . . . . 3 188 . . . 93 . Average Temperature 70 | . . . . . . . 3 105 . . . 38 . Received Heat Transfer 618 | . . . 18 . . . 12 . . 9 57 234 288 Siege Activations . | . . . . . . . . . . . . . . Martial Activations . | . . . . . . . . . . . . . . Shielding Activations . | . . . . . . . . . . . . . . Robots Disrupted 1 | . . . . . . . . . . . . . 1 Combat Hostiles 1 | . . . . . . . . . . . . . 1 Robots Corrupted . | . . . . . . . . . . . . . . Combat Hostiles . | . . . . . . . . . . . . . . Parts Fried . | . . . . . . . . . . . . . . Impact Corruptions . | . . . . . . . . . . . . . . Robots Melted 1 | . . . . . . . . 1 . . . . . Combat Hostiles 1 | . . . . . . . . 1 . . . . . Parts Melted 3 | . . . . . . . . 1 . . . 2 . Heat Transferred 692 | . . . . . . . . 100 . . . 592 . Parts Sabotaged . | . . . . . . . . . . . . . . Parts Stolen . | . . . . . . . . . . . . . . Parts Stripped . | . . . . . . . . . . . . . . Power Chain Reactions 2 | . . . . . . . . . . . . 2 . Alert | -11 -10 -10 -10 -7 -7 -5 -5 -5 -5 -4 -4 -3 -2 ------- Run | Yrd Mat Min Sub Rec Scr Fac Upp Upp Zhi Pro Fac Res Res Maximum Alert Level 1 | . . . . . . . . . . . . 1 1 Low Security (%) 96 | 100 100 100 . 100 . 100 . . . . 100 98 85 Level 1 3 | . . . . . . . . . . . . 1 14 Level 2 . | . . . . . . . . . . . . . . Level 3 . | . . . . . . . . . . . . . . Level 4 . | . . . . . . . . . . . . . . Level 5 . | . . . . . . . . . . . . . . High Security . | . . . . . . . . . . . . . . Max Security . | . . . . . . . . . . . . . . Peak Influence 361 | . . 30 . 28 . . . . . . 156 204 361 Initial 86 | . . . . . . . . . . . 40 66 86 Average 56 | . . 2 . 2 . . . . . . 96 108 134 Influence Increases 1769 | . . 30 166 48 . . 72 224 15 105 146 408 555 Destroy 0b10 Robot/C 700 | . . . 100 40 . . 40 200 . 60 100 120 40 Destroy 0b10 Robot/NC 15 | . . . . . . . . . 15 . . . . Destroy Leader 90 | . . . . . . . 20 20 . . 10 40 . Allied During Kill 60 | . . . 36 8 . . 12 4 . . . . . Successful Hack 14 | . . . . . . . . . . . . 14 . Select Force Hacks 150 | . . . . . . . . . . . . 100 50 Destroy Structure 50 | . . . . . . . . . . . 36 14 . Lose Combat Pursuer 690 | . . 30 30 . . . . . . 45 . 120 465 Influence Decreases 1418 | . . 30 166 48 . . 72 220 19 40 85 380 358 Entered New Map 157 | . . . . . . . . . 4 . 25 60 68 Time Decay 891 | . . 30 146 40 . . 72 138 15 40 40 180 190 Lost Part 302 | . . . . . . . . 42 . . 20 140 100 Lost Ally 68 | . . . 20 8 . . . 40 . . . . . Squads Dispatched 12 | . . . . . . . . . . . 1 6 5 Investigation 5 | . . . . . . . . . . . . 3 2 Extermination 4 | . . . . . . . . . . . . 2 2 Reinforcement 3 | . . . . . . . . . . . 1 1 1 Assault . | . . . . . . . . . . . . . . Garrison . | . . . . . . . . . . . . . . Intercept . | . . . . . . . . . . . . . . Searches Triggered . | . . . . . . . . . . . . . . Construction Impeded . | . . . . . . . . . . . . . . Haulers Reinforced . | . . . . . . . . . . . . . . Active Scanning Responses . | . . . . . . . . . . . . . . Cargo Convoy Interrupts . | . . . . . . . . . . . . . . Stealth | -11 -10 -10 -10 -7 -7 -5 -5 -5 -5 -4 -4 -3 -2 --------- Run | Yrd Mat Min Sub Rec Scr Fac Upp Upp Zhi Pro Fac Res Res Distress Signals 4 | . . . . . . . . . . . 1 1 2 Communications Jammed . | . . . . . . . . . . . . . . Distress Signals . | . . . . . . . . . . . . . . Times Spotted 152 | . 4 4 18 . . . 2 10 . 8 14 40 52 Peak Tracking Total 19 | . 4 2 4 . . . 1 5 . 5 9 16 19 Tactical Retreats 18 | . . 2 1 . . . . . . 3 . 4 8 Traps | -11 -10 -10 -10 -7 -7 -5 -5 -5 -5 -4 -4 -3 -2 ------- Run | Yrd Mat Min Sub Rec Scr Fac Upp Upp Zhi Pro Fac Res Res Traps Triggered 2 | . . . 2 . . . . . . . . . . Indirectly . | . . . . . . . . . . . . . . Trap Hack Attempts . | . . . . . . . . . . . . . . Triggered . | . . . . . . . . . . . . . . Disarmed . | . . . . . . . . . . . . . . Reprogrammed . | . . . . . . . . . . . . . . Reused . | . . . . . . . . . . . . . . Traps Extracted . | . . . . . . . . . . . . . . Installed . | . . . . . . . . . . . . . . Triggered . | . . . . . . . . . . . . . . Machines | -11 -10 -10 -10 -7 -7 -5 -5 -5 -5 -4 -4 -3 -2 ---------- Run | Yrd Mat Min Sub Rec Scr Fac Upp Upp Zhi Pro Fac Res Res Machines Disabled 4 | . . . 4 . . . . . . . . . . Max in Single Turn 2 | . . . 2 . . . . . . . . . . Machines Repaired . | . . . . . . . . . . . . . . Machines Dismantled . | . . . . . . . . . . . . . . Machines Sabotaged . | . . . . . . . . . . . . . . Overloaded Fab Kills 8 | . . . . . . . . . . . . 7 1 Hacking | -11 -10 -10 -10 -7 -7 -5 -5 -5 -5 -4 -4 -3 -2 --------- Run | Yrd Mat Min Sub Rec Scr Fac Upp Upp Zhi Pro Fac Res Res Machines Accessed 12 | . . . 1 . 1 . . . 4 . . 4 2 Terminals 1 | . . . . . . . . . . . . 1 . Fabricators 3 | . . . . . . . . . . . . 2 1 Repair Stations . | . . . . . . . . . . . . . . Recycling Units 2 | . . . . . . . . . . . . 1 1 Scanalyzers . | . . . . . . . . . . . . . . Garrison Access . | . . . . . . . . . . . . . . Total Hacks 31 | . . . 1 . 1 . . . 17 . . 9 3 Successful 25 | . . . 1 . 1 . . . 17 . . 4 2 Failed 6 | . . . . . . . . . . . . 5 1 Catastrophic 4 | . . . . . . . . . . . . 3 1 Database Lockouts . | . . . . . . . . . . . . . . Manual 11 | . . . . . . . . . . . . 8 3 Terminals 4 | . . . . . . . . . . . . 4 . Fabricators 4 | . . . . . . . . . . . . 3 1 Repair Stations . | . . . . . . . . . . . . . . Recycling Units 4 | . . . . . . . . . . . . 2 2 Scanalyzers . | . . . . . . . . . . . . . . Garrison Access . | . . . . . . . . . . . . . . Terminal Hacks 20 | . . . 1 . 1 . . . 17 . . 1 . Record 5 | . . . . . . . . . 5 . . . . Part Schematic 4 | . . . . . . . . . 4 . . . . Robot Analysis 4 | . . . . . . . . . 4 . . . . Prototype ID Bank 4 | . . . . . . . . . 4 . . . . Emergency Access Points 1 | . . . . . . . . . . . . 1 . Proto ID Catalog 2 | . . . 1 . 1 . . . . . . . . Fabricator Hacks . | . . . . . . . . . . . . . . Repair Station Hacks . | . . . . . . . . . . . . . . Recycling Unit Hacks . | . . . . . . . . . . . . . . Scanalyzer . | . . . . . . . . . . . . . . Garrison Access Hacks . | . . . . . . . . . . . . . . Unauthorized Hacks 5 | . . . . . . . . . . . . 3 2 Terminals . | . . . . . . . . . . . . . . Fabricators 3 | . . . . . . . . . . . . 2 1 Overload 3 | . . . . . . . . . . . . 2 1 Repair Stations . | . . . . . . . . . . . . . . Recycling Units 2 | . . . . . . . . . . . . 1 1 Fedlink 1 | . . . . . . . . . . . . 1 . Scrapoids 1 | . . . . . . . . . . . . . 1 Scanalyzers . | . . . . . . . . . . . . . . Garrison Access . | . . . . . . . . . . . . . . Data Cores Recovered . | . . . . . . . . . . . . . . Used . | . . . . . . . . . . . . . . Hacking Detections 4 | . . . . . . . . . . . . 3 1 Full Trace Events . | . . . . . . . . . . . . . . Feedback Events . | . . . . . . . . . . . . . . Feedback Blocked . | . . . . . . . . . . . . . . Robot Schematics Acquired . | . . . . . . . . . . . . . . Robots Built . | . . . . . . . . . . . . . . Authchips . | . . . . . . . . . . . . . . Time . | . . . . . . . . . . . . . . Total Robot Build Rating . | . . . . . . . . . . . . . . Part Schematics Acquired 4 | . . . . . . . . . 4 . . . . Parts Built . | . . . . . . . . . . . . . . Authchips . | . . . . . . . . . . . . . . Time . | . . . . . . . . . . . . . . Total Part Build Rating . | . . . . . . . . . . . . . . Part Studies Acquired . | . . . . . . . . . . . . . . Parts Repaired . | . . . . . . . . . . . . . . Time . | . . . . . . . . . . . . . . Parts Recycled . | . . . . . . . . . . . . . . Recycled Matter . | . . . . . . . . . . . . . . Retrieved Matter . | . . . . . . . . . . . . . . Retrieved Components . | . . . . . . . . . . . . . . Parts Scanalyzed . | . . . . . . . . . . . . . . Part Schematics Acquired . | . . . . . . . . . . . . . . Parts Damaged . | . . . . . . . . . . . . . . Bothacking | -11 -10 -10 -10 -7 -7 -5 -5 -5 -5 -4 -4 -3 -2 ------------ Run | Yrd Mat Min Sub Rec Scr Fac Upp Upp Zhi Pro Fac Res Res Used RIF Installer . | . . . . . . . . . . . . . . Robots Hacked . | . . . . . . . . . . . . . . Non-combat . | . . . . . . . . . . . . . . Combat . | . . . . . . . . . . . . . . Robot Hacks Applied . | . . . . . . . . . . . . . . Relay Couplers Released . | . . . . . . . . . . . . . . Fabnet Peak Effective % . | . . . . . . . . . . . . . . Robots Rewired . | . . . . . . . . . . . . . . Allies Hacked . | . . . . . . . . . . . . . . Hacks Repelled . | . . . . . . . . . . . . . . Allies | -11 -10 -10 -10 -7 -7 -5 -5 -5 -5 -4 -4 -3 -2 -------- Run | Yrd Mat Min Sub Rec Scr Fac Upp Upp Zhi Pro Fac Res Res Total Allies 21 | . . 5 16 . . . . . . . . . . Largest Group 10 | . . 2 10 10 8 8 8 3 . . . . . Highest-Rated Group 190 | . . 49 190 190 152 152 152 57 . . . . . Highest-Rated Ally 31 | . . 31 31 19 19 19 19 19 . . . . . Total Orders . | . . . . . . . . . . . . . . Ally Attacks 110 | . . 7 60 9 . . 31 3 . . . . . Total Damage 1724 | . . 78 746 173 . . 671 56 . . . . . Kills 15 | . . . 9 2 . . 3 1 . . . . . Allies Corrupted . | . . . . . . . . . . . . . . Allies Melted . | . . . . . . . . . . . . . . Intel | -11 -10 -10 -10 -7 -7 -5 -5 -5 -5 -4 -4 -3 -2 ------- Run | Yrd Mat Min Sub Rec Scr Fac Upp Upp Zhi Pro Fac Res Res Active Infowar (turns) . | . . . . . . . . . . . . . . Robot Analysis Total 4 | . . . . . . . . . 4 . . . . Derelict Logs Recovered 5 | . . 1 . . . . 1 2 . 1 . . . Drone Launches . | . . . . . . . . . . . . . . Drone Recoveries . | . . . . . . . . . . . . . . Exploration | -11 -10 -10 -10 -7 -7 -5 -5 -5 -5 -4 -4 -3 -2 ------------- Run | Yrd Mat Min Sub Rec Scr Fac Upp Upp Zhi Pro Fac Res Res Turns Passed 6591 | 21 42 507 2094 365 540 53 907 691 337 188 84 374 388 Spaces Moved 5653 | 36 80 184 1802 287 509 39 551 282 165 380 140 546 652 Core 2447 | 36 80 184 1369 9 . . 46 . . . . 73 650 Treads 839 | . . . . . . . 458 282 98 . . . 1 Legs 1 | . . . . . . . . . . . . . 1 Wheels 1306 | . . . 433 278 509 39 47 . . . . . . Hover 837 | . . . . . . . . . 67 380 140 250 . Flight 223 | . . . . . . . . . . . . 223 . Fastest Speed 30 | 50 50 50 50 100 100 100 100 160 42 30 40 35 50 Average Speed 96 | 50 50 50 104 103 100 100 160 216 172 44 40 45 50 Slowest Speed 260 | 50 50 50 200 200 100 100 250 260 260 92 42 95 145 Overloaded Moves 15 | . . . . . . . . . . 11 . 4 . Propulsion Burnouts . | . . . . . . . . . . . . . . Robots Hopped 12 | . . . . . . . . . . . . 12 . Potential Cave-ins . | . . . . . . . . . . . . . . Cave-ins Triggered . | . . . . . . . . . . . . . . Teleports 1 | . . . . . . . . . . . . 1 . Exploration Rate (%) 38 | 4 30 51 60 62 48 2 66 40 60 58 6 26 20 Regions Visited 13 Branch Regions 8 Pre-discovered Areas 6 | . . 1 . . . . . 2 3 . . . . Known Exits Taken 1 | . . . . . . . . . . . 1 . . Unknown Exits Taken 12 | 1 1 1 1 1 1 1 1 1 1 1 . 1 . Scrap Searched 16 | . . 1 6 . 3 . 2 1 . 3 . . . Spaces Dug 11 | . . . 8 . . . . . . . . 3 . Terrain Destroyed 478 | . . . 373 . . . 1 53 . 23 21 7 . Melee . | . . . . . . . . . . . . . . Projectile 22 | . . . 5 . . . 1 9 . . . 7 . AOE 456 | . . . 368 . . . . 44 . 23 21 . . Terrain Rammed . | . . . . . . . . . . . . . . Walls Destroyed . | . . . . . . . . . . . . . . Machines Disabled . | . . . . . . . . . . . . . . Actions | -11 -10 -10 -10 -7 -7 -5 -5 -5 -5 -4 -4 -3 -2 --------- Run | Yrd Mat Min Sub Rec Scr Fac Upp Upp Zhi Pro Fac Res Res Total 6593 | 37 81 598 1954 356 540 52 564 330 200 395 160 625 701 Wait 632 | . . 415 65 64 32 13 1 5 . . 9 19 9 Move 5618 | 35 79 183 1801 286 508 38 550 281 164 379 139 523 652 Hop 10 | . . . . . . . . . . . . 10 . Pick Up 33 | . 2 . 2 1 . . 1 3 1 1 . 18 4 Fast Attach 60 | 2 . . 7 2 . 1 6 6 8 4 2 10 12 Attach 21 | . . . 9 . . . . 3 . 1 1 4 3 Detach 15 | . . . 9 . . . . 1 1 1 1 . 2 Swap 4 | . . . 1 . . . . . . . 1 2 . Drop 41 | . . . 4 3 . . . 1 8 4 1 17 3 Fire 136 | . . . 56 . . . 6 24 17 5 6 21 1 Melee . | . . . . . . . . . . . . . . Ram 1 | . . . . . . . . . . . . 1 . Kick 13 | . . . . . . . . . . . . . 13 Crush 3 | . . . . . . . . 1 . . . . 2 Escape Stasis . | . . . . . . . . . . . . . . Rewire 1 | . . . . . . . . . 1 . . . . Trap . | . . . . . . . . . . . . . . Miscellaneous 5 | . . . . . . . . 5 . . . . . Route ------- -11/Scrapyard -10/Materials -10/Mines (discovered 2 exits: [*Mat] / *Sub) -10/Subcaves (discovered 2 exits: [*Mat] / [*Rec]) -7/Recycling -7/Scraptown (discovered 2 exits: [*Fac x2]) -5/Factory -5/Upper Caves -5/Upper Caves -5/Zhirov -4/Proximity Caves -4/Factory -3/Research -2/Research (discovered 1 exit: [*Qua]) History --------- Turn | Location | Event 6 | -11/Scrapyard | Discovered new exit (range 16) 22 | -11/Scrapyard | Entered Materials 23 | -10/Materials | Met a group of wandering Federalists 58 | -10/Materials | Discovered new exit (range 11) 64 | -10/Materials | Entered Mines 65 | -10/Mines | Assembled infested the area 70 | -10/Mines | Assisted by a Guerilla fighting off Assembled 75 | -10/Mines | Assisted by bots powering up and referring to "LRC-V3" 79 | -10/Mines | Discovered new exit (range 15) 84 | -10/Mines | Learned Materials interactive machine intel 116 | -10/Mines | Lost 4 allies 131 | -10/Mines | Learned location of Storage (-7) 315 | -10/Mines | Build established: Mutant 559 | -10/Mines | Discovered new exit (range 5) 571 | -10/Mines | Entered Subcaves 571 | -10/Subcaves | Accompanied by 2 allies 572 | -10/Subcaves | Approached by a straggling Scientist 578 | -10/Subcaves | A swath of the cavern ceiling suddenly collapsed 580 | -10/Subcaves | Led the pair of lost Derelicts to an unsafe place 604 | -10/Subcaves | Shifting Twisted Machinery released Sub. Shrapnel Launcher 633 | -10/Subcaves | Lost 3 allies 665 | -10/Subcaves | Visited triangular shrine 668 | -10/Subcaves | Found Prototype Device 668 | -10/Subcaves | Identified V3-11A's Pendant 674 | -10/Subcaves | Befriended Subdweller 674 | -10/Subcaves | Befriended Subdweller 674 | -10/Subcaves | Befriended Subdweller 679 | -10/Subcaves | Befriended Subdweller 679 | -10/Subcaves | Befriended Subdweller 856 | -10/Subcaves | Ambushed by Subdweller buried in earth 859 | -10/Subcaves | Befriended Subdweller 885 | -10/Subcaves | Ambushed by Subdweller buried in earth 887 | -10/Subcaves | Ambushed by Subdweller buried in earth 889 | -10/Subcaves | Befriended Subdweller 1034 | -10/Subcaves | Ambushed by Subdweller buried in earth 1037 | -10/Subcaves | Core integrity fell below 50% 1039 | -10/Subcaves | Befriended Subdweller 1040 | -10/Subcaves | Ambushed by Subdweller buried in earth 1044 | -10/Subcaves | Befriended Subdweller 1124 | -10/Subcaves | Ambushed by Subdweller buried in earth 1129 | -10/Subcaves | Befriended Subdweller 1135 | -10/Subcaves | Ambushed by Subdweller buried in earth 1139 | -10/Subcaves | Befriended Subdweller 1293 | -10/Subcaves | Visited 4L-MR0's lab 1304 | -10/Subcaves | Found Prototype Energy Cannon 1304 | -10/Subcaves | Identified Powered Cannon 1305 | -10/Subcaves | Attached Powered Cannon, gained temporary slot: Power 1366 | -10/Subcaves | Discovered new exit (range 9) 1394 | -10/Subcaves | Lost 4 allies 1446 | -10/Subcaves | A swath of the cavern ceiling suddenly collapsed 1624 | -10/Subcaves | Shifting Twisted Machinery released Shrapnel Trap 1692 | -10/Subcaves | Discovered new exit (range 12) 1694 | -10/Subcaves | Befriended Subdweller 1694 | -10/Subcaves | Befriended Subdweller 1739 | -10/Subcaves | Befriended Subdweller 1809 | -10/Subcaves | Befriended Subdweller 1819 | -10/Subcaves | Befriended Subdweller 2665 | -10/Subcaves | Entered Recycling 2665 | -7/Recycling | Accompanied by 10 allies 2945 | -7/Recycling | Scanned before Scraplab entrance 2997 | -7/Recycling | Entered Scraplab 3005 | -7/Recycling | Discovered new exit (range 3) 3030 | -7/Recycling | Entered Scraptown 3030 | -7/Scraptown | Accompanied by 8 allies 3084 | -7/Scraptown | Heard Great Nut preacher, LISTEN AND RECITE! 3089 | -7/Scraptown | Visited UFD Registry 3089 | -7/Scraptown | Registered with UFD as "Fiberspreader" 3138 | -7/Scraptown | Discovered new exit (range 11) 3161 | -7/Scraptown | Guru changed UFD alias to "Pyrocutter" 3226 | -7/Scraptown | Visited Bundlers 3315 | -7/Scraptown | Visited Science Guys 3477 | -7/Scraptown | Met Optimus 3477 | -7/Scraptown | Accepted into 0bPrime 3534 | -7/Scraptown | Discovered new exit (range 3) 3570 | -7/Scraptown | Entered Factory 3570 | -5/Factory | Accompanied by 8 allies 3570 | -5/Factory | Evolved 10 slots: Propulsion x3, Utility x3, Weapon x4 3595 | -5/Factory | Discovered new exit (range 12) 3623 | -5/Factory | Entered Upper Caves 3623 | -5/Upper Caves | Accompanied by 8 allies 3626 | -5/Upper Caves | Learned location of 1 exit from Factory 3666 | -5/Upper Caves | Spotted B-75 Beast 3692 | -5/Upper Caves | Allies destroyed B-75 Beast 3722 | -5/Upper Caves | Lost 4 allies 4518 | -5/Upper Caves | Discovered new exit (range 6) 4530 | -5/Upper Caves | Entered another Upper Caves area 4530 | -5/Upper Caves | Accompanied by 3 allies 4702 | -5/Upper Caves | Lost 3 allies 5020 | -5/Upper Caves | Build established: Subdweller-Executioner 5038 | -5/Upper Caves | Learned location of Warlord (-4) 5102 | -5/Upper Caves | Learned location of Armory (-3) 5144 | -5/Upper Caves | Ambushed by research squad 5172 | -5/Upper Caves | Discovered new exit (range 10) 5201 | -5/Upper Caves | Lost 6 parts (1p1n2u2w) 5221 | -5/Upper Caves | Entered Zhirov 5221 | -5/Zhirov | Discovered new exit (range 3) 5268 | -5/Zhirov | Met Zhirov 5318 | -5/Zhirov | Learned location of Quarantine (-2) 5318 | -5/Zhirov | Learned location of Testing (-3) 5318 | -5/Zhirov | Learned location of Command (-1) 5341 | -5/Zhirov | Zhirov requested help retrieving the SGEMP Prototype 5405 | -5/Zhirov | Found Alien Artifact 5405 | -5/Zhirov | Identified Integrated Dissipator 5405 | -5/Zhirov | Installed Integrated Dissipator, increased core heat dissipation (+20) 5435 | -5/Zhirov | Found Alien Artifact 5464 | -5/Zhirov | Build established: Scavenger-Mutant 5558 | -5/Zhirov | Entered Proximity Caves 5621 | -4/Proximity Caves | Attracted the attention of an 0b10 checkpoint 5665 | -4/Proximity Caves | Learned Research stockpile data 5744 | -4/Proximity Caves | Discovered new exit (range 8) 5746 | -4/Proximity Caves | Entered Factory 5746 | -4/Factory | Evolved 2 slots: Weapon x2 5747 | -4/Factory | Identified exit to Research 5829 | -4/Factory | Build established: Mutant 5830 | -4/Factory | Entered Research 5830 | -3/Research | Evolved 2 slots: Weapon x2 5854 | -3/Research | Spotted B-86 Titan 6037 | -3/Research | Loaded intel: 5 recycling unit locations 6098 | -3/Research | Lost 3 parts (1n2w) 6106 | -3/Research | Spotted B-86 Titan 6163 | -3/Research | Identified Transdimensional Reconstructor 6163 | -3/Research | Warped through subspace 6185 | -3/Research | Core integrity fell below 50% 6185 | -3/Research | System corruption reached 10% 6196 | -3/Research | Discovered new exit (range 15) 6204 | -3/Research | Entered another Research area 6204 | -2/Research | Evolved 2 slots: Weapon x2 6218 | -2/Research | Lost 9 parts (1p4n3u1w) 6239 | -2/Research | Spotted B-90 Cyclops 6298 | -2/Research | Found Prototype Device 6298 | -2/Research | Identified Exp. Thermal Defense Suite 6494 | -2/Research | Found Gamma Bomb Array 6574 | -2/Research | System corruption reached 10% 6580 | -2/Research | Core integrity fell below 50% 6582 | -2/Research | Spotted B-90 Cyclops 6586 | -2/Research | Discovered new exit (range 15) 6589 | -2/Research | Core integrity fell below 20% 6592 | -2/Research | Destroyed by B-90 Cyclops with Nova Cannon Last Messages --------------- 06567_ S-43 Plague IFF system glitched. 06569_ Biometal Heavy Treads destroyed. 06570_ S-43 Plague destroyed. 06573_ S-43 Plague misfires. 06574_ H1XACXX6 3X,#0K9K 06583_ Connecting with Recycling Unit... >>Force(Scrapoids) UFD!MEMBER UFD!ALLOCATE<60-3=57> UFD!ETA<25> UFD!SANITIZING UFD!... 06583_ ALERT: Suspicious activity at Recycling Unit R001. Dispatching Investigation squad. 06586_ EXIT=FOUND 06587_ P-80 Master resets S-43 Plague, system corruption cleaned. Map ----- +----------------------------------------------------+ | ????????????????# ?????????????????????????????? | | ????????????????# ?????????????????????????????? | | ????????????????# #????????????????????????????? | | ????????????????# #????????????????????????????? | | ????????????????# #????????????????????????????? | | ????????????????# #????????????????????????????? | | ????????????????# #????????????????????????????? | | ????????????????# #????????????? ?????????????? | | ????????????????# ############# "????????????? | | ????????????????# """ "????????????? | | ????????????????# "Y" ???????????? | | ????????????????+ " " ???????????? | | ????????????????# ???????????? | | ????????????????# #####???????????????? | | ????????????????# s pp##???????????????????? | | ????????????????#!! #????????????????????? | | ??###############! #????????????????????? | | ??# s #????????????????????? | | ??# #????????????????????? | | ??# s #????????????????????? | | ### ############ ####;; ###??????????????????? | | ! # # #???# ####T ###????????????????? | | ==# # #???# ##""" """#????????????????? | | %*/ " ##### #### BB ###????????????????? | | ==# # + ##""" BB """#????????????????? | | # # #####+#### @ ###?????????????? | | # # = ##! #""" """#?????????????# | | ### #####+### ### ###?????????????# | | ??# #???# #?# #?#"" ""#???????????????# | | ??# #???# #?# #?#"" < ""#???????????????# | | ??# #???# ?# #?#" "#???????????????# | | ??# #???###?# #?#"""" ""#???????????????# | | ?? #????########/#??"""""""#???????????????# | | ??# #????# ??# #???#######???????????????# | | ??##+##????# ??# #?????????????????????????# | | ???? ?????# *** ?# #?????????????????????????# | | ???? ?????# *** ?# #?????????????????????????# | | ???? ?????# ** # #######################+### | | ???? ?????# # = | | ???? ?????# + %* | | ???????????#= # = | | ############ ##################+######+###### | | # ## ????????????????? ?? ???? | | # ## ??????????????? # ?? | | # ## ??????????????# "" # # | | # ## ??????????????# """ # # | | + #####???????????????# "T # # | | # #???????????????????# """ # # | | # #???????????????????# ??"" # # | | # #????????#######????#???? # # | +----------------------------------------------------+ Best States ------------- Heat Dissipation 69 Energy Generation 25 Energy Capacity 795 Matter Stores 300 Matter Capacity 300 Sight Range 16 Terrain Scan Density 10 Corruption Containment 8 Armor Coverage 950 Weapon Shielding 66 Evasion (%) 67 Targeting Accuracy 6 Launcher Accuracy 30 Core Analysis 6 Recoil Reduction 3 Defensive Hacking 14 Item Schematics ----------------- Assault Drone Bay | -5/Zhirov | Free Exp. Heat Sink | -5/Zhirov | Free Exp. Optical Array | -5/Zhirov | Free Imp. Arc Thrower | -5/Zhirov | Free Robot Schematics ------------------ None Fabricated ------------ Nothing Repaired ---------- Nothing Studied --------- None Alien Tech Used ----------------- Integrated Dissipator Transdimensional Reconstructor Achievements -------------- None Challenges ------------ None Game ------ Seed CatalystBurstBasin Manual? 0 Play Time 00:38:28 Cumulative 399.7 hours Start 2025.11.12 @ 10:38:27 End 2025.11.12 @ 11:17:55 Sessions 1 Manual Loads 0 Difficulty Rogue Special Mode None Game No. 370 Rogue 370 Adventurer 0 Explorer 0 Win Type - Total 3 Types 2/1/0/0/0/0/0/0/0/0 Lore% 84 Gallery% 84 Achievement% 62 Wizard Run 0 Options --------- Layout 1 ASCII 0 Keyboard 0 Movement Numpad Keybinds 0 Fullscreen 1 Font 24/Smallcaps Map View 50x35 Zoom Use 0% Tactical HUD 1 Map Filters NONE Filters NONE Steam 1 RUN: cbad9c32-c6dd-4204-b10e-37539a1f8d60